bitfinex/quotes_BTCUSD_20250910
["timestamp","ask_amount","ask_price","bid_price","bid_amount"]
[1757507170791,0.03959323,112710.0,112700.0,0.33966827]
[1757507171223,0.03959323,112710.0,112700.0,0.49162827]
[1757507171434,0.0719247,112710.0,112700.0,0.48953827]
[1757507171647,0.06471981,112710.0,112700.0,0.49164827]
[1757507172098,0.06471981,112710.0,112700.0,0.49264827]
[1757507172897,0.06471981,112710.0,112700.0,0.34168827]
[1757507173133,0.0719247,112710.0,112700.0,0.34168827]
[1757507173327,0.0719247,112710.0,112700.0,0.49264827]
[1757507173522,0.0699547,112710.0,112700.0,0.49264827]
[1757507174280,0.0699547,112710.0,112700.0,0.34168827]
[1757507174506,0.0719247,112710.0,112700.0,0.49260827]
[1757507176681,0.0669447,112710.0,112700.0,0.16422599]
[1757507176887,0.0719247,112710.0,112700.0,0.49260827]
[1757507177127,0.20484101,112710.0,112700.0,0.49260827]
[1757507177307,0.06969981,112710.0,112700.0,0.49260827]
[1757507177504,0.0719247,112710.0,112700.0,0.49260827]
[1757507178686,0.06471981,112710.0,112700.0,0.49260827]
[1757507179310,0.0669447,112710.0,112700.0,0.49260827]
[1757507180024,0.20484101,112710.0,112700.0,0.49049827]
[1757507180214,0.20261612,112710.0,112700.0,0.49049827]
[1757507180654,0.20261612,112710.0,112700.0,0.49260827]
[1757507181202,0.06969981,112710.0,112700.0,0.49260827]
[1757507181404,0.0719247,112710.0,112700.0,0.49260827]
[1757507181739,0.22968101,112710.0,112700.0,0.31303599]
[1757507181921,0.09453981,112710.0,112700.0,0.49049827]
[1757507182122,0.20484101,112710.0,112700.0,0.49049827]
[1757507182470,0.20261612,112710.0,112700.0,0.49260827]
[1757507182748,0.06969981,112710.0,112700.0,0.49260827]
[1757507182899,0.0719247,112710.0,112700.0,0.49260827]
[1757507184283,0.0719247,112710.0,112700.0,0.49049827]
[1757507184416,0.0719247,112710.0,112700.0,0.31303599]
[1757507184621,0.20484101,112710.0,112700.0,0.49049827]
[1757507184821,0.20261612,112710.0,112700.0,0.49049827]
[1757507185228,0.06969981,112710.0,112700.0,0.49260827]
[1757507185545,0.0669447,112710.0,112700.0,0.49260827]
[1757507186345,0.0719247,112710.0,112700.0,0.49260827]
[1757507187331,0.20484101,112710.0,112700.0,0.49260827]
[1757507187593,0.20261612,112710.0,112700.0,0.49260827]
[1757507188784,0.20261612,112710.0,112700.0,0.16211599]
[1757507188986,0.22745612,112710.0,112700.0,0.31299599]
[1757507189569,0.40490266,112710.0,112700.0,0.16211599]
[1757507189770,0.87781897,112710.0,112700.0,0.09391599]
[1757507189999,0.56745612,112710.0,112700.0,0.24479599]
[1757507190171,0.74490266,112710.0,112700.0,0.24479599]
[1757507190576,0.74490266,112710.0,112700.0,0.24379599]
[1757507192422,0.78215039,112710.0,112700.0,0.24379599]
[1757507194620,0.61198635,112710.0,112700.0,0.24379599]
[1757507194817,0.78215039,112710.0,112700.0,0.24379599]
[1757507199691,0.43453981,112710.0,112700.0,0.24379599]
[1757507199867,0.60470385,112710.0,112700.0,0.24379599]
[1757507200599,0.78215039,112710.0,112700.0,0.24379599]
[1757507201573,0.57986385,112710.0,112700.0,0.24595599]
[1757507201768,0.57488385,112710.0,112700.0,0.42341827]
[1757507201908,0.57488385,112710.0,112700.0,0.24595599]
[1757507202304,0.58016385,112710.0,112700.0,0.24595599]
[1757507202771,0.58016385,112710.0,112700.0,0.24379599]
[1757507202987,0.58744635,112710.0,112700.0,0.24379599]
[1757507203193,0.78240039,112710.0,112700.0,0.24379599]
[1757507203601,0.60495385,112710.0,112700.0,0.24595599]
[1757507203809,0.57488385,112710.0,112700.0,0.24595599]
[1757507204225,0.58016385,112710.0,112700.0,0.24595599]
[1757507204899,0.75761039,112710.0,112700.0,0.24595599]
[1757507205981,0.75761039,112710.0,112700.0,0.24379599]
[1757507206950,0.58744635,112710.0,112700.0,0.09291599]
[1757507207167,0.78240039,112710.0,112700.0,0.24375599]
[1757507209184,0.78240039,112710.0,112700.0,0.09291599]
[1757507209666,0.78240039,112710.0,112700.0,0.24375599]
[1757507212965,0.43478981,112710.0,112700.0,0.24375599]
[1757507213166,0.40471981,112710.0,112700.0,0.59354231]
[1757507213384,0.06471981,112710.0,112700.0,0.66170231]
[1757507214262,0.06471981,112710.0,112700.0,0.49153827]
[1757507214466,0.03959323,112710.0,112700.0,0.66170231]
[1757507214676,0.03959323,112710.0,112700.0,0.83324635]
[1757507214886,0.03959323,112710.0,112700.0,0.66308231]
[1757507215754,0.24016385,112710.0,112700.0,0.16107599]
[1757507215912,0.24016385,112710.0,112700.0,0.31187599]
[1757507216331,0.24016385,112710.0,112700.0,0.48933827]
[1757507216594,0.24016385,112710.0,112700.0,0.49149827]
[1757507216730,0.23800385,112710.0,112700.0,0.49149827]
[1757507217286,0.24016385,112710.0,112700.0,0.49149827]
[1757507217631,0.06471981,112710.0,112700.0,0.66166231]
[1757507217836,0.05130558,112720.0,112710.0,0.17744654]
[1757507218038,0.05135171,112720.0,112710.0,0.27152253]
[1757507218245,0.22151575,112720.0,112710.0,0.27152253]
[1757507218945,0.22151575,112720.0,112710.0,0.09407599]
[1757507219267,0.22463575,112720.0,112710.0,0.27152253]
[1757507220270,0.22251575,112720.0,112710.0,0.27152253]
[1757507221290,0.05235171,112720.0,112710.0,0.27152253]
[1757507221657,0.22663575,112720.0,112710.0,0.27152253]
[1757507221876,0.62630717,112720.0,112710.0,0.09191599]
[1757507222048,0.62630717,112720.0,112710.0,0.24267599]
[1757507222712,0.62630717,112720.0,112710.0,0.09191599]
[1757507222907,0.62630717,112720.0,112710.0,0.24267599]
[1757507223928,0.08375829,112720.0,112710.0,0.24483599]
[1757507224137,0.25614722,112720.0,112710.0,0.24483599]
[1757507224338,0.08375829,112720.0,112710.0,0.24483599]
[1757507224538,0.25086722,112720.0,112710.0,0.24483599]
[1757507224737,0.24864233,112720.0,112710.0,0.24483599]
[1757507225434,0.23692998,112720.0,112710.0,0.42228253]
[1757507225787,0.04163936,112720.0,112710.0,0.59382657]
[1757507226618,0.04163936,112720.0,112710.0,0.42366253]
[1757507226825,0.04163936,112720.0,112710.0,0.59382657]
[1757507227043,0.03963936,112720.0,112710.0,0.59382657]
[1757507227472,0.03963936,112720.0,112710.0,0.59582657]
[1757507228106,0.03963936,112720.0,112710.0,0.42566253]
[1757507228512,0.03963936,112720.0,112710.0,0.59582657]
[1757507229742,4.613e-05,112720.0,112710.0,0.59582657]
[1757507229943,4.613e-05,112720.0,112710.0,0.59682657]
[1757507230818,4.613e-05,112720.0,112710.0,0.59582657]
[1757507231695,4.613e-05,112720.0,112710.0,0.99582657]
[1757507231911,4.613e-05,112720.0,112710.0,0.99540657]
[1757507232995,4.613e-05,112720.0,112710.0,0.99678657]
[1757507233644,4.613e-05,112720.0,112710.0,0.59678657]
[1757507234269,4.613e-05,112720.0,112710.0,0.99678657]
[1757507234688,4.613e-05,112720.0,112710.0,0.84606657]
[1757507234903,4.613e-05,112720.0,112710.0,0.99674657]
[1757507236170,4.613e-05,112720.0,112710.0,0.67452253]
[1757507236441,4.613e-05,112720.0,112710.0,0.24775599]
[1757507236442,0.15812956,112720.0,112710.0,0.24775599]
[1757507236665,0.15812956,112720.0,112710.0,0.42304253]
[1757507237756,0.15812956,112720.0,112710.0,0.42512253]
[1757507238178,0.04471936,112720.0,112710.0,0.42512253]
[1757507240261,0.03963936,112720.0,112710.0,0.42512253]
[1757507240464,0.15304956,112720.0,112710.0,0.42512253]
[1757507241497,0.15599956,112720.0,112710.0,0.42512253]
[1757507241704,0.15812956,112720.0,112710.0,0.09491599]
[1757507241907,0.36291183,112720.0,112710.0,0.24555599]
[1757507242107,0.38463694,112720.0,112710.0,0.24555599]
[1757507242306,0.20720614,112720.0,112710.0,0.42300253]
[1757507242517,0.18325614,112720.0,112710.0,0.42508253]
[1757507242752,0.06476594,112720.0,112710.0,0.42508253]
[1757507244237,0.03963936,112720.0,112710.0,0.42508253]
[1757507248204,0.15812956,112720.0,112710.0,0.24763599]
[1757507248619,0.15812956,112720.0,112710.0,0.42508253]
[1757507248820,0.15812956,112720.0,112710.0,0.42300253]
[1757507249364,0.18207956,112720.0,112710.0,0.42508253]
[1757507249565,0.15812956,112720.0,112710.0,0.42508253]
[1757507249946,0.15812956,112720.0,112710.0,0.24551599]
[1757507250157,0.15812956,112720.0,112710.0,0.42296253]
[1757507250772,0.15812956,112720.0,112710.0,0.42504253]
[1757507251153,0.15812956,112720.0,112710.0,0.09699599]
[1757507251154,0.36068694,112720.0,112710.0,0.09699599]
[1757507251362,0.49804714,112720.0,112710.0,0.09491599]
[1757507251618,0.49804714,112720.0,112710.0,0.24551599]
[1757507251773,0.5246868,112720.0,112710.0,0.24551599]
[1757507256065,0.2978664,112720.0,112710.0,0.24551599]
[1757507256294,0.5246868,112720.0,112710.0,0.24551599]
[1757507256676,0.8646868,112720.0,112710.0,0.09491599]
[1757507256877,0.8646868,112720.0,112710.0,0.24547599]
[1757507257678,0.8646868,112720.0,112710.0,0.09491599]
[1757507258274,0.978097,112720.0,112710.0,0.003]
[1757507258796,0.8646868,112720.0,112710.0,0.003]
[1757507259024,1.0152468,112720.0,112710.0,0.001]
[1757507259424,0.03959323,112700.0,112690.0,0.0618]
[1757507259624,0.49808343,112700.0,112690.0,0.33119402]
[1757507260147,0.5247269,112700.0,112690.0,0.33119402]
[1757507260925,0.5247269,112700.0,112690.0,0.33219402]
[1757507262121,0.70218918,112700.0,112690.0,0.15471599]
[1757507262876,0.5247269,112700.0,112690.0,0.15471599]
[1757507263095,0.70218918,112700.0,112690.0,0.15471599]
[1757507263729,0.72642918,112700.0,112690.0,0.15471599]
[1757507264229,0.5489669,112700.0,112690.0,0.15471599]
[1757507264485,0.5489669,112700.0,112690.0,0.33219402]
[1757507264889,0.72642918,112700.0,112690.0,0.15471599]
[1757507265597,0.72642918,112700.0,112690.0,0.09291599]
[1757507265816,0.72642918,112700.0,112690.0,0.24347599]
[1757507266255,0.83983938,112700.0,112690.0,0.24347599]
[1757507268854,0.83983938,112700.0,112690.0,0.09291599]
[1757507269071,0.83983938,112700.0,112690.0,0.24343599]
[1757507275172,0.72642918,112700.0,112690.0,0.24343599]
[1757507281517,0.58877898,112700.0,112690.0,0.24557599]
[1757507281856,0.60882556,112700.0,112690.0,0.24557599]
[1757507282605,0.09136328,112700.0,112690.0,0.42305402]
[1757507282809,0.26882556,112700.0,112690.0,0.42305402]
[1757507283235,0.38734576,112700.0,112690.0,0.24549599]
[1757507286409,0.27393556,112700.0,112690.0,0.24549599]
[1757507286611,0.38734576,112700.0,112690.0,0.24549599]
[1757507286873,0.27393556,112700.0,112690.0,0.24549599]
[1757507287265,0.38734576,112700.0,112690.0,0.24549599]
[1757507287394,0.27393556,112700.0,112690.0,0.24549599]
[1757507287623,0.38734576,112700.0,112690.0,0.24549599]
[1757507288470,0.27393556,112700.0,112690.0,0.24549599]
[1757507288671,0.38734576,112700.0,112690.0,0.24549599]
[1757507290350,0.26882556,112700.0,112690.0,0.24549599]
[1757507290570,0.38223576,112700.0,112690.0,0.24335599]
[1757507294250,0.38223576,112700.0,112690.0,0.09291599]
[1757507294673,0.38223576,112700.0,112690.0,0.24331599]
[1757507295932,0.38223576,112700.0,112690.0,0.09291599]
[1757507296063,0.38223576,112700.0,112690.0,0.24331599]
[1757507298282,0.09136328,112700.0,112690.0,0.24331599]
[1757507298492,0.44122456,112700.0,112690.0,0.24331599]
[1757507298627,0.43899967,112700.0,112690.0,0.22554799]
[1757507301548,0.26882556,112700.0,112690.0,0.22554799]
[1757507301894,0.43899967,112700.0,112690.0,0.22554799]
[1757507303510,0.60917378,112700.0,112690.0,0.22550799]
[1757507304547,0.26882556,112700.0,112690.0,0.07514799]
[1757507304918,0.43899967,112700.0,112690.0,0.22546799]
[1757507305234,0.60917378,112700.0,112690.0,0.22546799]
[1757507305984,0.26882556,112700.0,112690.0,0.22546799]
[1757507306186,0.26153739,112700.0,112690.0,0.22546799]
[1757507306399,0.43899967,112700.0,112690.0,0.22546799]
[1757507309135,0.02664347,112700.0,112690.0,0.57312013]
[1757507309334,0.03959323,112700.0,112690.0,0.58199403]
[1757507309533,0.02663969,112710.0,112700.0,0.17746228]
[1757507309731,0.06623292,112710.0,112700.0,0.44177065]
[1757507309934,0.06623292,112710.0,112700.0,0.43955238]
[1757507311138,0.06723292,112710.0,112700.0,0.43955238]
[1757507312406,0.02763969,112710.0,112700.0,0.43955238]
[1757507312610,0.06723292,112710.0,112700.0,0.43955238]
[1757507312873,0.06723292,112710.0,112700.0,0.26937827]
[1757507313156,0.06823292,112710.0,112700.0,0.43955238]
[1757507313317,0.06723292,112710.0,112700.0,0.43955238]
[1757507313667,0.06623292,112710.0,112700.0,0.44055238]
[1757507314174,0.06623292,112710.0,112700.0,0.43955238]
[1757507314389,0.06623292,112710.0,112700.0,0.44055238]
[1757507315027,0.23640703,112710.0,112700.0,0.27037827]
[1757507315233,0.23640703,112710.0,112700.0,0.42065827]
[1757507316428,0.41385357,112710.0,112700.0,0.24315599]
[1757507316736,0.23640703,112710.0,112700.0,0.24315599]
[1757507316926,0.41385357,112710.0,112700.0,0.24315599]
[1757507317131,0.41385357,112710.0,112700.0,0.09291599]
[1757507317571,0.41385357,112710.0,112700.0,0.24315599]
[1757507318387,0.43898015,112710.0,112700.0,0.24315599]
[1757507321601,0.26880604,112710.0,112700.0,0.24315599]
[1757507321806,0.43898015,112710.0,112700.0,0.24315599]
[1757507322559,0.0913595,112710.0,112700.0,0.24315599]
[1757507322780,0.26153361,112710.0,112700.0,0.24315599]
[1757507323003,0.43898015,112710.0,112700.0,0.24315599]
[1757507324117,0.26880604,112710.0,112700.0,0.24315599]
[1757507324590,0.43898015,112710.0,112700.0,0.24315599]
[1757507325144,0.26880604,112710.0,112700.0,0.24315599]
[1757507325369,0.43898015,112710.0,112700.0,0.24315599]
[1757507326000,0.43898015,112710.0,112700.0,0.24311599]
[1757507327616,0.60915426,112710.0,112700.0,0.09291599]
[1757507327914,0.60915426,112710.0,112700.0,0.24307599]
[1757507328532,0.48155867,112710.0,112700.0,0.24307599]
[1757507332091,0.82155867,112710.0,112700.0,0.09291599]
[1757507332296,0.8466502,112710.0,112700.0,0.09291599]
[1757507332495,0.8466502,112710.0,112700.0,0.24303599]
[1757507336298,0.8466502,112710.0,112700.0,0.09291599]
[1757507336502,0.8466502,112710.0,112700.0,0.001]
[1757507337481,0.54258886,112700.0,112690.0,0.15012]
[1757507337683,0.75534149,112700.0,112690.0,0.24203599]
[1757507338083,0.78198718,112700.0,112690.0,0.24203599]
[1757507338749,0.56923455,112700.0,112690.0,0.24203599]
[1757507339059,0.78198718,112700.0,112690.0,0.24503599]
[1757507339621,0.78198718,112700.0,112690.0,0.24403599]
[1757507340135,0.78198718,112700.0,112690.0,0.24203599]
[1757507340355,0.56923455,112700.0,112690.0,0.24203599]
[1757507340547,0.56923455,112700.0,112690.0,0.24303599]
[1757507341406,0.56923455,112700.0,112690.0,0.24203599]
[1757507341610,0.56923455,112700.0,112690.0,0.24403599]
[1757507341810,0.56923455,112700.0,112690.0,0.24203599]
[1757507342217,0.56923455,112700.0,112690.0,0.24303599]
[1757507342645,0.56923455,112700.0,112690.0,0.24403599]
[1757507343422,0.56923455,112700.0,112690.0,0.24303599]
[1757507343894,0.56923455,112700.0,112690.0,0.24403599]
[1757507344028,0.56923455,112700.0,112690.0,0.24203599]
[1757507344442,0.56923455,112700.0,112690.0,0.24303599]
[1757507344744,0.56923455,112700.0,112690.0,0.24203599]
[1757507345175,0.56923455,112700.0,112690.0,0.24503599]
[1757507345547,0.56923455,112700.0,112690.0,0.24403599]
[1757507346799,0.56923455,112700.0,112690.0,0.24203599]
[1757507347198,0.56923455,112700.0,112690.0,0.24303599]
[1757507347405,0.56923455,112700.0,112690.0,0.09291599]
[1757507347603,0.59432608,112700.0,112690.0,0.24299599]
[1757507347832,0.59432608,112700.0,112690.0,0.24399599]
[1757507348016,0.59432608,112700.0,112690.0,0.09391599]
[1757507348173,0.59432608,112700.0,112690.0,0.09291599]
[1757507348987,0.63391931,112700.0,112690.0,0.09291599]
[1757507352497,0.60882778,112700.0,112690.0,0.09291599]
[1757507360279,0.63391931,112700.0,112690.0,0.09291599]
[1757507368314,0.63391931,112700.0,112690.0,0.001]
[1757507368492,0.7150559,112700.0,112690.0,0.001]
[1757507368661,0.63391931,112700.0,112690.0,0.001]
[1757507369269,0.63391931,112700.0,112660.0,0.98489524]
[1757507369497,0.20263612,112670.0,112660.0,0.98489524]
[1757507369934,0.22928688,112670.0,112660.0,0.98489524]
[1757507370509,0.22928688,112670.0,112660.0,1.07681123]
[1757507370692,0.22928688,112670.0,112660.0,1.08385738]
[1757507374315,0.26888011,112670.0,112660.0,1.08385738]
[1757507374518,0.06624399,112670.0,112660.0,1.08385738]
[1757507374726,0.06624399,112670.0,112660.0,1.26138267]
[1757507375087,0.03959323,112680.0,112660.0,1.26138267]
[1757507375301,0.03959323,112680.0,112670.0,0.26942553]
[1757507375501,0.06623677,112680.0,112670.0,0.26942553]
[1757507375889,0.06623677,112680.0,112670.0,0.09191599]
[1757507376070,0.24373055,112680.0,112670.0,0.09191599]
[1757507376477,0.24373055,112680.0,112670.0,0.09491599]
[1757507377253,0.24373055,112680.0,112670.0,0.09691599]
[1757507378019,0.26885713,112680.0,112670.0,0.09491599]
[1757507378436,0.09136335,112680.0,112670.0,0.09491599]
[1757507378653,0.09358824,112680.0,112670.0,0.09191599]
[1757507379055,0.09358824,112680.0,112670.0,0.09491599]
[1757507379414,0.09358824,112680.0,112670.0,0.09391599]
[1757507379609,0.09136335,112680.0,112670.0,0.09591599]
[1757507379817,0.09136335,112680.0,112670.0,0.09391599]
[1757507380245,0.09136335,112680.0,112670.0,0.09491599]
[1757507381459,0.43136335,112680.0,112670.0,0.09491599]
[1757507382765,0.45484666,112680.0,112670.0,0.003]
[1757507383167,0.50621872,112680.0,112670.0,0.003]
[1757507383637,0.50621872,112680.0,112670.0,0.002]
[1757507383847,0.55621872,112680.0,112670.0,0.002]
[1757507384698,0.55621872,112680.0,112670.0,0.003]
[1757507385541,0.55621872,112680.0,112670.0,0.001]
[1757507386304,0.55621872,112680.0,112670.0,0.002]
[1757507386471,0.55621872,112680.0,112670.0,0.001]
[1757507386672,0.06471981,112670.0,112660.0,0.98494139]
[1757507386910,0.09042801,112670.0,112660.0,0.98494139]
[1757507387326,0.0669447,112670.0,112660.0,0.98494139]
[1757507387530,0.09360162,112670.0,112660.0,0.98494139]
[1757507388106,0.11708493,112670.0,112660.0,0.98494139]
[1757507388928,0.11708493,112670.0,112660.0,0.98594139]
[1757507390254,0.17293063,112670.0,112660.0,0.98594139]
[1757507390478,0.11708493,112670.0,112660.0,0.98594139]
[1757507391874,0.11708493,112670.0,112660.0,0.98494139]
[1757507392226,0.11708493,112670.0,112660.0,0.99694139]
[1757507394125,0.11708493,112670.0,112660.0,0.99194139]
[1757507394800,0.11708493,112670.0,112660.0,0.99594139]
[1757507399610,0.11708493,112670.0,112660.0,0.98894139]
[1757507400016,0.11808493,112670.0,112660.0,0.98894139]
[1757507401062,0.55889342,112670.0,112660.0,0.98894139]
[1757507401265,0.62686695,112670.0,112660.0,0.47118455]
[1757507401493,0.50257515,112670.0,112660.0,0.47118455]
[1757507401702,0.19572662,112710.0,112660.0,0.47118455]
[1757507401703,0.00086218,112760.0,112750.0,0.15]
[1757507401922,0.26794973,112800.0,112790.0,0.02806687]
[1757507401923,0.00122586,112800.0,112790.0,0.02806687]
[1757507402150,0.00071864,112810.0,112800.0,0.07512658]
[1757507402409,0.00071864,112810.0,112800.0,0.52512658]
[1757507402683,0.00481158,112830.0,112810.0,0.01466687]
[1757507402892,0.00481158,112830.0,112820.0,0.05]
[1757507403104,0.02789406,112830.0,112820.0,0.01466687]
[1757507403321,0.00262489,112840.0,112820.0,0.06947845]
[1757507403322,0.0004,112840.0,112820.0,0.06947845]
[1757507403522,0.0004,112840.0,112830.0,0.49658286]
[1757507403755,0.0004,112860.0,112850.0,0.06466687]
[1757507403961,0.01,112880.0,112870.0,0.40466687]
[1757507404423,0.00090208,112900.0,112890.0,0.40466687]
[1757507404664,0.00264722,112920.0,112890.0,0.40466687]
[1757507404665,0.00264722,112920.0,112910.0,0.06466687]
[1757507404904,0.00264722,112920.0,112910.0,0.06688102]
[1757507405433,0.00321782,112930.0,112920.0,0.24178341]
[1757507405713,0.00265516,112950.0,112930.0,0.40466687]
[1757507405965,0.0068151,112960.0,112950.0,0.01466687]
[1757507406225,0.005995,112990.0,112970.0,0.38952388]
[1757507406536,2.6174533,112980.0,112970.0,0.40419075]
[1757507406719,2.6174533,112980.0,112970.0,0.41269075]
[1757507406936,2.6174533,112980.0,112970.0,0.95460674]
[1757507406937,1.81482688,112980.0,112970.0,0.95460674]
[1757507407159,1.73697773,112980.0,112970.0,1.00460674]
[1757507407382,1.26645212,112980.0,112970.0,1.33781733]
[1757507407610,0.88610316,112980.0,112970.0,1.33781733]
[1757507407843,0.71981889,112980.0,112970.0,1.13781733]
[1757507408119,0.49523558,112980.0,112970.0,1.13781733]
[1757507408329,0.06139742,112980.0,112970.0,1.08781733]
[1757507408551,1e-08,112990.0,112980.0,0.14952388]
[1757507408788,0.22791236,113060.0,113050.0,0.51345828]
[1757507409019,0.22791236,113060.0,113050.0,0.27195828]
[1757507409263,0.22805134,113060.0,113050.0,0.61387427]
[1757507409712,0.22805134,113060.0,113050.0,0.16387427]
[1757507409938,0.20488987,113060.0,113050.0,0.16387427]
[1757507410162,1e-08,113070.0,113060.0,0.4903555]
[1757507410423,1e-08,113070.0,113060.0,0.15537427]
[1757507410627,2.62502825,113080.0,113070.0,0.58033985]
[1757507410837,2.62502825,113080.0,113070.0,0.63033985]
[1757507410838,2.44119097,113080.0,113070.0,0.63033985]
[1757507411052,2.34574159,113080.0,113070.0,0.41195828]
[1757507411482,2.34574159,113080.0,113070.0,0.53041654]
[1757507411710,2.34574159,113080.0,113070.0,0.52191654]
[1757507412159,2.34527785,113080.0,113070.0,0.57191654]
[1757507412404,2.34527785,113080.0,113070.0,0.52191654]
[1757507412675,2.34527785,113080.0,113070.0,0.49537427]
[1757507412927,0.03656901,113120.0,113110.0,0.45345828]
[1757507413164,0.015795,113180.0,113170.0,0.40305843]
[1757507413398,1.0354862,113200.0,113190.0,0.06305843]
[1757507413887,1.03594824,113200.0,113190.0,0.06305843]
[1757507414107,1.03593876,113200.0,113190.0,0.41155843]
[1757507414331,1.03593876,113200.0,113190.0,0.70584704]
[1757507414544,0.58522366,113200.0,113190.0,0.50347442]
[1757507414758,0.55868401,113200.0,113190.0,0.50347442]
[1757507415227,0.55868401,113200.0,113180.0,0.06305843]
[1757507415443,0.4613372,113200.0,113190.0,0.0224344]
[1757507415658,0.66370982,113200.0,113190.0,0.04912403]
[1757507415868,0.66370982,113200.0,113170.0,0.06305843]
[1757507416084,0.4613372,113200.0,113190.0,0.06305843]
[1757507416524,0.4613372,113200.0,113190.0,0.27155843]
[1757507416772,0.4613372,113200.0,113190.0,0.67900414]
[1757507416998,0.005,113210.0,113200.0,0.82973687]
[1757507417213,0.005,113210.0,113200.0,0.98210949]
[1757507417427,0.055795,113220.0,113210.0,0.45305843]
[1757507417642,0.055795,113220.0,113210.0,0.49497442]
[1757507417882,0.32651998,113330.0,113210.0,1.14971966]
[1757507418131,0.21244,113340.0,113300.0,0.04972794]
[1757507418354,0.05,113460.0,113450.0,0.25]
[1757507418629,0.0440433,113510.0,113410.0,0.21303975]
[1757507418630,0.09739242,113500.0,113410.0,0.21303975]
[1757507418868,0.01526615,113450.0,113440.0,0.21433428]
[1757507419081,0.01526615,113450.0,113440.0,0.2129398]
[1757507419295,0.05201098,113500.0,113470.0,0.0088129]
[1757507419522,0.05201098,113500.0,113440.0,0.10163171]
[1757507419523,0.02650728,113450.0,113440.0,0.2]
[1757507419744,0.05,113420.0,113360.0,0.00882145]
[1757507419983,0.11792,113410.0,113400.0,0.02649726]
[1757507420210,0.05,113400.0,113370.0,0.00882067]
[1757507420448,0.02649192,113490.0,113420.0,0.2]
[1757507420688,0.05,113480.0,113440.0,0.20981985]
[1757507420912,0.0617267,113500.0,113430.0,0.0085]
[1757507421138,0.0617267,113500.0,113450.0,0.2085]
[1757507421139,0.0117267,113500.0,113450.0,0.2085]
[1757507421365,0.05,113480.0,113450.0,0.0085]
[1757507421580,0.23035712,113500.0,113450.0,0.0085]
[1757507421581,0.0567267,113500.0,113450.0,0.00211507]
[1757507421821,0.0567267,113500.0,113490.0,0.09191599]
[1757507421822,0.0117267,113500.0,113490.0,0.09191599]
[1757507422070,0.0117267,113500.0,113490.0,0.29411882]
[1757507422292,0.0117267,113500.0,113490.0,0.29403106]
[1757507422511,0.0117267,113500.0,113490.0,0.09403106]
[1757507422744,0.0117267,113500.0,113490.0,0.15966039]
[1757507422965,0.05719047,113500.0,113490.0,0.09403106]
[1757507423203,0.05719047,113500.0,113400.0,0.05881834]
[1757507423204,0.0538129,113470.0,113440.0,0.06563843]
[1757507423464,0.045,113480.0,113450.0,0.00220361]
[1757507423716,0.045,113480.0,113390.0,0.20981985]
[1757507423717,0.045,113440.0,113390.0,0.20981985]
[1757507423950,0.045,113450.0,113430.0,0.16242853]
[1757507424161,0.11284,113480.0,113450.0,0.27051254]
[1757507424380,0.00046377,113500.0,113470.0,0.29191599]
[1757507424627,0.00046377,113500.0,113480.0,0.01070303]
[1757507424628,0.04546377,113500.0,113480.0,0.01070303]
[1757507424838,0.045,113490.0,113480.0,0.0085]
[1757507425055,0.045,113480.0,113470.0,0.09191599]
[1757507425279,0.045,113440.0,113370.0,0.06798]
[1757507425525,0.07012658,113400.0,113390.0,0.00211507]
[1757507425741,0.045,113380.0,113370.0,0.0001]
[1757507425997,0.02512658,113400.0,113370.0,0.00230516]
[1757507425998,0.045,113400.0,113370.0,0.00230516]
[1757507426210,0.045,113430.0,113390.0,0.40981985]
[1757507426442,0.045,113420.0,113400.0,0.002]
[1757507426671,0.045,113430.0,113410.0,0.09191599]
[1757507426908,0.07012658,113420.0,113410.0,0.09191599]
[1757507427129,0.045,113420.0,113410.0,0.002]
[1757507427351,0.06784,113470.0,113430.0,0.2]
[1757507427568,0.06784,113470.0,113420.0,0.00881678]
[1757507427569,0.045,113460.0,113420.0,0.54981985]
[1757507427786,0.01172705,113450.0,113440.0,0.74981985]
[1757507428211,0.01172705,113450.0,113440.0,0.63191599]
[1757507428449,0.01172705,113450.0,113440.0,0.89173584]
[1757507428669,0.045,113510.0,113490.0,0.2]
[1757507428886,0.0678,113520.0,113490.0,0.2]
[1757507428887,0.12160902,113520.0,113490.0,0.2]
[1757507429118,0.05381134,113490.0,113450.0,0.34]
[1757507429341,0.05381134,113490.0,113430.0,0.06522212]
[1757507429342,0.05381367,113460.0,113430.0,0.06522212]
[1757507429576,0.045,113440.0,113410.0,0.27404746]
[1757507429813,0.05381445,113450.0,113410.0,0.27404746]
[1757507430032,0.05381445,113450.0,113410.0,0.06422761]
[1757507430265,0.05381445,113450.0,113400.0,0.2]
[1757507430266,0.045,113420.0,113400.0,0.2]
[1757507430495,0.00881523,113440.0,113410.0,0.09191599]
[1757507430496,0.045,113430.0,113410.0,0.09191599]
[1757507430714,0.045,113420.0,113410.0,0.09191599]
[1757507431177,0.045,113430.0,113410.0,0.09191599]
[1757507431388,0.0001,113420.0,113400.0,0.40981985]
[1757507431602,0.0001,113420.0,113410.0,0.49341768]
[1757507431811,0.0001,113420.0,113410.0,0.96849749]
[1757507432031,0.00046348,113470.0,113460.0,0.2]
[1757507432236,0.00046348,113470.0,113430.0,0.20037563]
[1757507432499,0.00046348,113470.0,113440.0,0.21101903]
[1757507432711,0.00046348,113470.0,113460.0,0.09191599]
[1757507432926,0.00046348,113470.0,113460.0,0.0941194]
[1757507433160,0.00046348,113470.0,113460.0,0.36763358]
[1757507433384,0.00046348,113470.0,113460.0,0.39776016]
[1757507433601,8.845e-05,113470.0,113460.0,0.77155538]
[1757507433830,0.045,113500.0,113460.0,0.62553106]
[1757507434042,0.045,113490.0,113480.0,0.09191599]
[1757507434261,0.045,113490.0,113470.0,0.09411921]
[1757507434473,0.045,113510.0,113480.0,0.2]
[1757507434711,0.045,113510.0,113500.0,0.08476586]
[1757507435358,0.03583482,113530.0,113510.0,0.34]
[1757507435359,0.00045514,113520.0,113510.0,0.34]
[1757507435578,0.00045514,113520.0,113500.0,0.08476586]
[1757507435795,0.00045514,113520.0,113500.0,0.28476586]
[1757507436266,0.045,113510.0,113500.0,0.08476586]
[1757507436489,0.045,113510.0,113480.0,0.21172]
[1757507436490,0.05426416,113520.0,113460.0,0.20881367]
[1757507436712,0.045,113500.0,113470.0,0.0088129]
[1757507436919,0.045,113500.0,113460.0,0.21863352]
[1757507437135,0.045,113500.0,113440.0,0.06776]
[1757507437389,0.00045514,113520.0,113490.0,0.09191599]
[1757507437646,0.02702658,113530.0,113510.0,0.09191599]
[1757507437865,0.05702725,113550.0,113520.0,0.08554274]
[1757507438072,0.045,113540.0,113530.0,0.09191599]
[1757507438503,0.07012658,113540.0,113530.0,0.09191599]
[1757507438740,0.045,113500.0,113480.0,0.2]
[1757507438998,0.045,113500.0,113490.0,0.09191599]
[1757507439431,0.00881445,113450.0,113420.0,0.07061254]
[1757507439649,0.00881445,113450.0,113430.0,0.002204]
[1757507439650,0.045,113440.0,113430.0,0.002204]
[1757507439873,0.045,113440.0,113420.0,0.07061254]